{"text_format":"3","workbook":"xlsx","n_sheets":3,"sheets":["Ajakava","Andmesisestus","Nimeotsing"],"not_rendered":{"defined_names":5},"read":"whole","date_system":"1900"}

{"sheet":"Ajakava","index":0,"n_rows":23,"n_cols":9,"rows_kept":23,"merged":[[1,1,2,3]]}
[]
[null,"PÄEVAPLAAN",{"$nulls":4},"Nädal: ","Kuva ajakava: "]
[{"$nulls":5},{"$f":"WEEKDAY(Nädal,1)","v":3},"2012-07-03","Meelis"]
[null,null,{"$f":"$F$3=COLUMN(A$1)","v":false},{"$f":"$F$3=COLUMN(B$1)","v":false},true,false,false,false,false]
[null,null,{"$f":"COLUMN(A$1)-MATCH(TRUE,$C$4:$I$4,0)+Nädal+1","v":"2012-07-02"},"2012-07-03","2012-07-04","2012-07-05","2012-07-06","2012-07-07","2012-07-08"]
[null,"KELLAAEG","ESMASPÄEV","TEISIPÄEV","KOLMAPÄEV","NELJAPÄEV","REEDE","LAUPÄEV","PÜHAPÄEV"]
[null,"06:00:00",{"$f":"IFERROR(INDEX(tblAndmed[],MATCH(C$5+$B7&KuvaNimi,tblAndmed[KUUPÄEV JA KELLAAEG]&tblAndmed[KES],0),3),\"\")","v":""},{"$f":"IFERROR(INDEX(tblAndmed[],MATCH(D$5+$B7&KuvaNimi,tblAndmed[KUUPÄEV JA KELLAAEG]&tblAndmed[KES],0),3),\"\")","v":""},{"$f":"IFERROR(INDEX(tblAndmed[],MATCH(E$5+$B7&KuvaNimi,tblAndmed[KUUPÄEV JA KELLAAEG]&tblAndmed[KES],0),3),\"\")","v":""},{"$f":"IFERROR(INDEX(tblAndmed[],MATCH(F$5+$B7&KuvaNimi,tblAndmed[KUUPÄEV JA KELLAAEG]&tblAndmed[KES],0),3),\"\")","v":""},{"$f":"IFERROR(INDEX(tblAndmed[],MATCH(G$5+$B7&KuvaNimi,tblAndmed[KUUPÄEV JA KELLAAEG]&tblAndmed[KES],0),3),\"\")","v":""},{"$f":"IFERROR(INDEX(tblAndmed[],MATCH(H$5+$B7&KuvaNimi,tblAndmed[KUUPÄEV JA KELLAAEG]&tblAndmed[KES],0),3),\"\")","v":""},{"$f":"IFERROR(INDEX(tblAndmed[],MATCH(I$5+$B7&KuvaNimi,tblAndmed[KUUPÄEV JA KELLAAEG]&tblAndmed[KES],0),3),\"\")","v":""}]
[null,"07:00:00",{"$f":"IFERROR(INDEX(tblAndmed[],MATCH(C$5+$B8&KuvaNimi,tblAndmed[KUUPÄEV JA KELLAAEG]&tblAndmed[KES],0),3),\"\")","v":""},{"$f":"IFERROR(INDEX(tblAndmed[],MATCH(D$5+$B8&KuvaNimi,tblAndmed[KUUPÄEV JA KELLAAEG]&tblAndmed[KES],0),3),\"\")","v":""},{"$f":"IFERROR(INDEX(tblAndmed[],MATCH(E$5+$B8&KuvaNimi,tblAndmed[KUUPÄEV JA KELLAAEG]&tblAndmed[KES],0),3),\"\")","v":""},{"$f":"IFERROR(INDEX(tblAndmed[],MATCH(F$5+$B8&KuvaNimi,tblAndmed[KUUPÄEV JA KELLAAEG]&tblAndmed[KES],0),3),\"\")","v":""},{"$f":"IFERROR(INDEX(tblAndmed[],MATCH(G$5+$B8&KuvaNimi,tblAndmed[KUUPÄEV JA KELLAAEG]&tblAndmed[KES],0),3),\"\")","v":""},{"$f":"IFERROR(INDEX(tblAndmed[],MATCH(H$5+$B8&KuvaNimi,tblAndmed[KUUPÄEV JA KELLAAEG]&tblAndmed[KES],0),3),\"\")","v":""},{"$f":"IFERROR(INDEX(tblAndmed[],MATCH(I$5+$B8&KuvaNimi,tblAndmed[KUUPÄEV JA KELLAAEG]&tblAndmed[KES],0),3),\"\")","v":""}]
[null,"08:00:00",{"$f":"IFERROR(INDEX(tblAndmed[],MATCH(C$5+$B9&KuvaNimi,tblAndmed[KUUPÄEV JA KELLAAEG]&tblAndmed[KES],0),3),\"\")","v":""},{"$f":"IFERROR(INDEX(tblAndmed[],MATCH(D$5+$B9&KuvaNimi,tblAndmed[KUUPÄEV JA KELLAAEG]&tblAndmed[KES],0),3),\"\")","v":""},{"$f":"IFERROR(INDEX(tblAndmed[],MATCH(E$5+$B9&KuvaNimi,tblAndmed[KUUPÄEV JA KELLAAEG]&tblAndmed[KES],0),3),\"\")","v":""},{"$f":"IFERROR(INDEX(tblAndmed[],MATCH(F$5+$B9&KuvaNimi,tblAndmed[KUUPÄEV JA KELLAAEG]&tblAndmed[KES],0),3),\"\")","v":""},{"$f":"IFERROR(INDEX(tblAndmed[],MATCH(G$5+$B9&KuvaNimi,tblAndmed[KUUPÄEV JA KELLAAEG]&tblAndmed[KES],0),3),\"\")","v":""},{"$f":"IFERROR(INDEX(tblAndmed[],MATCH(H$5+$B9&KuvaNimi,tblAndmed[KUUPÄEV JA KELLAAEG]&tblAndmed[KES],0),3),\"\")","v":""},{"$f":"IFERROR(INDEX(tblAndmed[],MATCH(I$5+$B9&KuvaNimi,tblAndmed[KUUPÄEV JA KELLAAEG]&tblAndmed[KES],0),3),\"\")","v":""}]
[null,"09:00:00",{"$f":"IFERROR(INDEX(tblAndmed[],MATCH(C$5+$B10&KuvaNimi,tblAndmed[KUUPÄEV JA KELLAAEG]&tblAndmed[KES],0),3),\"\")","v":""},{"$f":"IFERROR(INDEX(tblAndmed[],MATCH(D$5+$B10&KuvaNimi,tblAndmed[KUUPÄEV JA KELLAAEG]&tblAndmed[KES],0),3),\"\")","v":""},{"$f":"IFERROR(INDEX(tblAndmed[],MATCH(E$5+$B10&KuvaNimi,tblAndmed[KUUPÄEV JA KELLAAEG]&tblAndmed[KES],0),3),\"\")","v":""},{"$f":"IFERROR(INDEX(tblAndmed[],MATCH(F$5+$B10&KuvaNimi,tblAndmed[KUUPÄEV JA KELLAAEG]&tblAndmed[KES],0),3),\"\")","v":""},{"$f":"IFERROR(INDEX(tblAndmed[],MATCH(G$5+$B10&KuvaNimi,tblAndmed[KUUPÄEV JA KELLAAEG]&tblAndmed[KES],0),3),\"\")","v":""},{"$f":"IFERROR(INDEX(tblAndmed[],MATCH(H$5+$B10&KuvaNimi,tblAndmed[KUUPÄEV JA KELLAAEG]&tblAndmed[KES],0),3),\"\")","v":""},{"$f":"IFERROR(INDEX(tblAndmed[],MATCH(I$5+$B10&KuvaNimi,tblAndmed[KUUPÄEV JA KELLAAEG]&tblAndmed[KES],0),3),\"\")","v":""}]
[null,"10:00:00",{"$f":"IFERROR(INDEX(tblAndmed[],MATCH(C$5+$B11&KuvaNimi,tblAndmed[KUUPÄEV JA KELLAAEG]&tblAndmed[KES],0),3),\"\")","v":""},{"$f":"IFERROR(INDEX(tblAndmed[],MATCH(D$5+$B11&KuvaNimi,tblAndmed[KUUPÄEV JA KELLAAEG]&tblAndmed[KES],0),3),\"\")","v":""},{"$f":"IFERROR(INDEX(tblAndmed[],MATCH(E$5+$B11&KuvaNimi,tblAndmed[KUUPÄEV JA KELLAAEG]&tblAndmed[KES],0),3),\"\")","v":"Paraad kesklinnas"},{"$f":"IFERROR(INDEX(tblAndmed[],MATCH(F$5+$B11&KuvaNimi,tblAndmed[KUUPÄEV JA KELLAAEG]&tblAndmed[KES],0),3),\"\")","v":""},{"$f":"IFERROR(INDEX(tblAndmed[],MATCH(G$5+$B11&KuvaNimi,tblAndmed[KUUPÄEV JA KELLAAEG]&tblAndmed[KES],0),3),\"\")","v":""},{"$f":"IFERROR(INDEX(tblAndmed[],MATCH(H$5+$B11&KuvaNimi,tblAndmed[KUUPÄEV JA KELLAAEG]&tblAndmed[KES],0),3),\"\")","v":""},{"$f":"IFERROR(INDEX(tblAndmed[],MATCH(I$5+$B11&KuvaNimi,tblAndmed[KUUPÄEV JA KELLAAEG]&tblAndmed[KES],0),3),\"\")","v":""}]
[null,"11:00:00",{"$f":"IFERROR(INDEX(tblAndmed[],MATCH(C$5+$B12&KuvaNimi,tblAndmed[KUUPÄEV JA KELLAAEG]&tblAndmed[KES],0),3),\"\")","v":""},{"$f":"IFERROR(INDEX(tblAndmed[],MATCH(D$5+$B12&KuvaNimi,tblAndmed[KUUPÄEV JA KELLAAEG]&tblAndmed[KES],0),3),\"\")","v":""},{"$f":"IFERROR(INDEX(tblAndmed[],MATCH(E$5+$B12&KuvaNimi,tblAndmed[KUUPÄEV JA KELLAAEG]&tblAndmed[KES],0),3),\"\")","v":""},{"$f":"IFERROR(INDEX(tblAndmed[],MATCH(F$5+$B12&KuvaNimi,tblAndmed[KUUPÄEV JA KELLAAEG]&tblAndmed[KES],0),3),\"\")","v":""},{"$f":"IFERROR(INDEX(tblAndmed[],MATCH(G$5+$B12&KuvaNimi,tblAndmed[KUUPÄEV JA KELLAAEG]&tblAndmed[KES],0),3),\"\")","v":"Perelõuna"},{"$f":"IFERROR(INDEX(tblAndmed[],MATCH(H$5+$B12&KuvaNimi,tblAndmed[KUUPÄEV JA KELLAAEG]&tblAndmed[KES],0),3),\"\")","v":""},{"$f":"IFERROR(INDEX(tblAndmed[],MATCH(I$5+$B12&KuvaNimi,tblAndmed[KUUPÄEV JA KELLAAEG]&tblAndmed[KES],0),3),\"\")","v":""}]
[null,"12:00:00",{"$f":"IFERROR(INDEX(tblAndmed[],MATCH(C$5+$B13&KuvaNimi,tblAndmed[KUUPÄEV JA KELLAAEG]&tblAndmed[KES],0),3),\"\")","v":""},{"$f":"IFERROR(INDEX(tblAndmed[],MATCH(D$5+$B13&KuvaNimi,tblAndmed[KUUPÄEV JA KELLAAEG]&tblAndmed[KES],0),3),\"\")","v":""},{"$f":"IFERROR(INDEX(tblAndmed[],MATCH(E$5+$B13&KuvaNimi,tblAndmed[KUUPÄEV JA KELLAAEG]&tblAndmed[KES],0),3),\"\")","v":""},{"$f":"IFERROR(INDEX(tblAndmed[],MATCH(F$5+$B13&KuvaNimi,tblAndmed[KUUPÄEV JA KELLAAEG]&tblAndmed[KES],0),3),\"\")","v":""},{"$f":"IFERROR(INDEX(tblAndmed[],MATCH(G$5+$B13&KuvaNimi,tblAndmed[KUUPÄEV JA KELLAAEG]&tblAndmed[KES],0),3),\"\")","v":""},{"$f":"IFERROR(INDEX(tblAndmed[],MATCH(H$5+$B13&KuvaNimi,tblAndmed[KUUPÄEV JA KELLAAEG]&tblAndmed[KES],0),3),\"\")","v":""},{"$f":"IFERROR(INDEX(tblAndmed[],MATCH(I$5+$B13&KuvaNimi,tblAndmed[KUUPÄEV JA KELLAAEG]&tblAndmed[KES],0),3),\"\")","v":""}]
[null,"13:00:00",{"$f":"IFERROR(INDEX(tblAndmed[],MATCH(C$5+$B14&KuvaNimi,tblAndmed[KUUPÄEV JA KELLAAEG]&tblAndmed[KES],0),3),\"\")","v":""},{"$f":"IFERROR(INDEX(tblAndmed[],MATCH(D$5+$B14&KuvaNimi,tblAndmed[KUUPÄEV JA KELLAAEG]&tblAndmed[KES],0),3),\"\")","v":""},{"$f":"IFERROR(INDEX(tblAndmed[],MATCH(E$5+$B14&KuvaNimi,tblAndmed[KUUPÄEV JA KELLAAEG]&tblAndmed[KES],0),3),\"\")","v":""},{"$f":"IFERROR(INDEX(tblAndmed[],MATCH(F$5+$B14&KuvaNimi,tblAndmed[KUUPÄEV JA KELLAAEG]&tblAndmed[KES],0),3),\"\")","v":""},{"$f":"IFERROR(INDEX(tblAndmed[],MATCH(G$5+$B14&KuvaNimi,tblAndmed[KUUPÄEV JA KELLAAEG]&tblAndmed[KES],0),3),\"\")","v":""},{"$f":"IFERROR(INDEX(tblAndmed[],MATCH(H$5+$B14&KuvaNimi,tblAndmed[KUUPÄEV JA KELLAAEG]&tblAndmed[KES],0),3),\"\")","v":""},{"$f":"IFERROR(INDEX(tblAndmed[],MATCH(I$5+$B14&KuvaNimi,tblAndmed[KUUPÄEV JA KELLAAEG]&tblAndmed[KES],0),3),\"\")","v":""}]
[null,"14:00:00",{"$f":"IFERROR(INDEX(tblAndmed[],MATCH(C$5+$B15&KuvaNimi,tblAndmed[KUUPÄEV JA KELLAAEG]&tblAndmed[KES],0),3),\"\")","v":""},{"$f":"IFERROR(INDEX(tblAndmed[],MATCH(D$5+$B15&KuvaNimi,tblAndmed[KUUPÄEV JA KELLAAEG]&tblAndmed[KES],0),3),\"\")","v":""},{"$f":"IFERROR(INDEX(tblAndmed[],MATCH(E$5+$B15&KuvaNimi,tblAndmed[KUUPÄEV JA KELLAAEG]&tblAndmed[KES],0),3),\"\")","v":""},{"$f":"IFERROR(INDEX(tblAndmed[],MATCH(F$5+$B15&KuvaNimi,tblAndmed[KUUPÄEV JA KELLAAEG]&tblAndmed[KES],0),3),\"\")","v":""},{"$f":"IFERROR(INDEX(tblAndmed[],MATCH(G$5+$B15&KuvaNimi,tblAndmed[KUUPÄEV JA KELLAAEG]&tblAndmed[KES],0),3),\"\")","v":""},{"$f":"IFERROR(INDEX(tblAndmed[],MATCH(H$5+$B15&KuvaNimi,tblAndmed[KUUPÄEV JA KELLAAEG]&tblAndmed[KES],0),3),\"\")","v":""},{"$f":"IFERROR(INDEX(tblAndmed[],MATCH(I$5+$B15&KuvaNimi,tblAndmed[KUUPÄEV JA KELLAAEG]&tblAndmed[KES],0),3),\"\")","v":""}]
[null,"15:00:00",{"$f":"IFERROR(INDEX(tblAndmed[],MATCH(C$5+$B16&KuvaNimi,tblAndmed[KUUPÄEV JA KELLAAEG]&tblAndmed[KES],0),3),\"\")","v":""},{"$f":"IFERROR(INDEX(tblAndmed[],MATCH(D$5+$B16&KuvaNimi,tblAndmed[KUUPÄEV JA KELLAAEG]&tblAndmed[KES],0),3),\"\")","v":""},{"$f":"IFERROR(INDEX(tblAndmed[],MATCH(E$5+$B16&KuvaNimi,tblAndmed[KUUPÄEV JA KELLAAEG]&tblAndmed[KES],0),3),\"\")","v":""},{"$f":"IFERROR(INDEX(tblAndmed[],MATCH(F$5+$B16&KuvaNimi,tblAndmed[KUUPÄEV JA KELLAAEG]&tblAndmed[KES],0),3),\"\")","v":""},{"$f":"IFERROR(INDEX(tblAndmed[],MATCH(G$5+$B16&KuvaNimi,tblAndmed[KUUPÄEV JA KELLAAEG]&tblAndmed[KES],0),3),\"\")","v":""},{"$f":"IFERROR(INDEX(tblAndmed[],MATCH(H$5+$B16&KuvaNimi,tblAndmed[KUUPÄEV JA KELLAAEG]&tblAndmed[KES],0),3),\"\")","v":""},{"$f":"IFERROR(INDEX(tblAndmed[],MATCH(I$5+$B16&KuvaNimi,tblAndmed[KUUPÄEV JA KELLAAEG]&tblAndmed[KES],0),3),\"\")","v":""}]
[null,"16:00:00",{"$f":"IFERROR(INDEX(tblAndmed[],MATCH(C$5+$B17&KuvaNimi,tblAndmed[KUUPÄEV JA KELLAAEG]&tblAndmed[KES],0),3),\"\")","v":""},{"$f":"IFERROR(INDEX(tblAndmed[],MATCH(D$5+$B17&KuvaNimi,tblAndmed[KUUPÄEV JA KELLAAEG]&tblAndmed[KES],0),3),\"\")","v":"Puhkekodu"},{"$f":"IFERROR(INDEX(tblAndmed[],MATCH(E$5+$B17&KuvaNimi,tblAndmed[KUUPÄEV JA KELLAAEG]&tblAndmed[KES],0),3),\"\")","v":""},{"$f":"IFERROR(INDEX(tblAndmed[],MATCH(F$5+$B17&KuvaNimi,tblAndmed[KUUPÄEV JA KELLAAEG]&tblAndmed[KES],0),3),\"\")","v":""},{"$f":"IFERROR(INDEX(tblAndmed[],MATCH(G$5+$B17&KuvaNimi,tblAndmed[KUUPÄEV JA KELLAAEG]&tblAndmed[KES],0),3),\"\")","v":""},{"$f":"IFERROR(INDEX(tblAndmed[],MATCH(H$5+$B17&KuvaNimi,tblAndmed[KUUPÄEV JA KELLAAEG]&tblAndmed[KES],0),3),\"\")","v":""},{"$f":"IFERROR(INDEX(tblAndmed[],MATCH(I$5+$B17&KuvaNimi,tblAndmed[KUUPÄEV JA KELLAAEG]&tblAndmed[KES],0),3),\"\")","v":""}]
[null,"17:00:00",{"$f":"IFERROR(INDEX(tblAndmed[],MATCH(C$5+$B18&KuvaNimi,tblAndmed[KUUPÄEV JA KELLAAEG]&tblAndmed[KES],0),3),\"\")","v":""},{"$f":"IFERROR(INDEX(tblAndmed[],MATCH(D$5+$B18&KuvaNimi,tblAndmed[KUUPÄEV JA KELLAAEG]&tblAndmed[KES],0),3),\"\")","v":""},{"$f":"IFERROR(INDEX(tblAndmed[],MATCH(E$5+$B18&KuvaNimi,tblAndmed[KUUPÄEV JA KELLAAEG]&tblAndmed[KES],0),3),\"\")","v":""},{"$f":"IFERROR(INDEX(tblAndmed[],MATCH(F$5+$B18&KuvaNimi,tblAndmed[KUUPÄEV JA KELLAAEG]&tblAndmed[KES],0),3),\"\")","v":""},{"$f":"IFERROR(INDEX(tblAndmed[],MATCH(G$5+$B18&KuvaNimi,tblAndmed[KUUPÄEV JA KELLAAEG]&tblAndmed[KES],0),3),\"\")","v":""},{"$f":"IFERROR(INDEX(tblAndmed[],MATCH(H$5+$B18&KuvaNimi,tblAndmed[KUUPÄEV JA KELLAAEG]&tblAndmed[KES],0),3),\"\")","v":""},{"$f":"IFERROR(INDEX(tblAndmed[],MATCH(I$5+$B18&KuvaNimi,tblAndmed[KUUPÄEV JA KELLAAEG]&tblAndmed[KES],0),3),\"\")","v":"Tagasitulek koju"}]
[null,"18:00:00",{"$f":"IFERROR(INDEX(tblAndmed[],MATCH(C$5+$B19&KuvaNimi,tblAndmed[KUUPÄEV JA KELLAAEG]&tblAndmed[KES],0),3),\"\")","v":"Ravimite võtmine"},{"$f":"IFERROR(INDEX(tblAndmed[],MATCH(D$5+$B19&KuvaNimi,tblAndmed[KUUPÄEV JA KELLAAEG]&tblAndmed[KES],0),3),\"\")","v":""},{"$f":"IFERROR(INDEX(tblAndmed[],MATCH(E$5+$B19&KuvaNimi,tblAndmed[KUUPÄEV JA KELLAAEG]&tblAndmed[KES],0),3),\"\")","v":""},{"$f":"IFERROR(INDEX(tblAndmed[],MATCH(F$5+$B19&KuvaNimi,tblAndmed[KUUPÄEV JA KELLAAEG]&tblAndmed[KES],0),3),\"\")","v":""},{"$f":"IFERROR(INDEX(tblAndmed[],MATCH(G$5+$B19&KuvaNimi,tblAndmed[KUUPÄEV JA KELLAAEG]&tblAndmed[KES],0),3),\"\")","v":""},{"$f":"IFERROR(INDEX(tblAndmed[],MATCH(H$5+$B19&KuvaNimi,tblAndmed[KUUPÄEV JA KELLAAEG]&tblAndmed[KES],0),3),\"\")","v":""},{"$f":"IFERROR(INDEX(tblAndmed[],MATCH(I$5+$B19&KuvaNimi,tblAndmed[KUUPÄEV JA KELLAAEG]&tblAndmed[KES],0),3),\"\")","v":""}]
[null,"19:00:00",{"$f":"IFERROR(INDEX(tblAndmed[],MATCH(C$5+$B20&KuvaNimi,tblAndmed[KUUPÄEV JA KELLAAEG]&tblAndmed[KES],0),3),\"\")","v":""},{"$f":"IFERROR(INDEX(tblAndmed[],MATCH(D$5+$B20&KuvaNimi,tblAndmed[KUUPÄEV JA KELLAAEG]&tblAndmed[KES],0),3),\"\")","v":""},{"$f":"IFERROR(INDEX(tblAndmed[],MATCH(E$5+$B20&KuvaNimi,tblAndmed[KUUPÄEV JA KELLAAEG]&tblAndmed[KES],0),3),\"\")","v":""},{"$f":"IFERROR(INDEX(tblAndmed[],MATCH(F$5+$B20&KuvaNimi,tblAndmed[KUUPÄEV JA KELLAAEG]&tblAndmed[KES],0),3),\"\")","v":""},{"$f":"IFERROR(INDEX(tblAndmed[],MATCH(G$5+$B20&KuvaNimi,tblAndmed[KUUPÄEV JA KELLAAEG]&tblAndmed[KES],0),3),\"\")","v":""},{"$f":"IFERROR(INDEX(tblAndmed[],MATCH(H$5+$B20&KuvaNimi,tblAndmed[KUUPÄEV JA KELLAAEG]&tblAndmed[KES],0),3),\"\")","v":""},{"$f":"IFERROR(INDEX(tblAndmed[],MATCH(I$5+$B20&KuvaNimi,tblAndmed[KUUPÄEV JA KELLAAEG]&tblAndmed[KES],0),3),\"\")","v":""}]
[null,"20:00:00",{"$f":"IFERROR(INDEX(tblAndmed[],MATCH(C$5+$B21&KuvaNimi,tblAndmed[KUUPÄEV JA KELLAAEG]&tblAndmed[KES],0),3),\"\")","v":"Kinokülastus perega"},{"$f":"IFERROR(INDEX(tblAndmed[],MATCH(D$5+$B21&KuvaNimi,tblAndmed[KUUPÄEV JA KELLAAEG]&tblAndmed[KES],0),3),\"\")","v":""},{"$f":"IFERROR(INDEX(tblAndmed[],MATCH(E$5+$B21&KuvaNimi,tblAndmed[KUUPÄEV JA KELLAAEG]&tblAndmed[KES],0),3),\"\")","v":""},{"$f":"IFERROR(INDEX(tblAndmed[],MATCH(F$5+$B21&KuvaNimi,tblAndmed[KUUPÄEV JA KELLAAEG]&tblAndmed[KES],0),3),\"\")","v":"Ilutulestik"},{"$f":"IFERROR(INDEX(tblAndmed[],MATCH(G$5+$B21&KuvaNimi,tblAndmed[KUUPÄEV JA KELLAAEG]&tblAndmed[KES],0),3),\"\")","v":""},{"$f":"IFERROR(INDEX(tblAndmed[],MATCH(H$5+$B21&KuvaNimi,tblAndmed[KUUPÄEV JA KELLAAEG]&tblAndmed[KES],0),3),\"\")","v":""},{"$f":"IFERROR(INDEX(tblAndmed[],MATCH(I$5+$B21&KuvaNimi,tblAndmed[KUUPÄEV JA KELLAAEG]&tblAndmed[KES],0),3),\"\")","v":""}]
[null,"21:00:00",{"$f":"IFERROR(INDEX(tblAndmed[],MATCH(C$5+$B22&KuvaNimi,tblAndmed[KUUPÄEV JA KELLAAEG]&tblAndmed[KES],0),3),\"\")","v":""},{"$f":"IFERROR(INDEX(tblAndmed[],MATCH(D$5+$B22&KuvaNimi,tblAndmed[KUUPÄEV JA KELLAAEG]&tblAndmed[KES],0),3),\"\")","v":""},{"$f":"IFERROR(INDEX(tblAndmed[],MATCH(E$5+$B22&KuvaNimi,tblAndmed[KUUPÄEV JA KELLAAEG]&tblAndmed[KES],0),3),\"\")","v":""},{"$f":"IFERROR(INDEX(tblAndmed[],MATCH(F$5+$B22&KuvaNimi,tblAndmed[KUUPÄEV JA KELLAAEG]&tblAndmed[KES],0),3),\"\")","v":""},{"$f":"IFERROR(INDEX(tblAndmed[],MATCH(G$5+$B22&KuvaNimi,tblAndmed[KUUPÄEV JA KELLAAEG]&tblAndmed[KES],0),3),\"\")","v":""},{"$f":"IFERROR(INDEX(tblAndmed[],MATCH(H$5+$B22&KuvaNimi,tblAndmed[KUUPÄEV JA KELLAAEG]&tblAndmed[KES],0),3),\"\")","v":""},{"$f":"IFERROR(INDEX(tblAndmed[],MATCH(I$5+$B22&KuvaNimi,tblAndmed[KUUPÄEV JA KELLAAEG]&tblAndmed[KES],0),3),\"\")","v":""}]
[null,"22:00:00",{"$f":"IFERROR(INDEX(tblAndmed[],MATCH(C$5+$B23&KuvaNimi,tblAndmed[KUUPÄEV JA KELLAAEG]&tblAndmed[KES],0),3),\"\")","v":""},{"$f":"IFERROR(INDEX(tblAndmed[],MATCH(D$5+$B23&KuvaNimi,tblAndmed[KUUPÄEV JA KELLAAEG]&tblAndmed[KES],0),3),\"\")","v":""},{"$f":"IFERROR(INDEX(tblAndmed[],MATCH(E$5+$B23&KuvaNimi,tblAndmed[KUUPÄEV JA KELLAAEG]&tblAndmed[KES],0),3),\"\")","v":""},{"$f":"IFERROR(INDEX(tblAndmed[],MATCH(F$5+$B23&KuvaNimi,tblAndmed[KUUPÄEV JA KELLAAEG]&tblAndmed[KES],0),3),\"\")","v":""},{"$f":"IFERROR(INDEX(tblAndmed[],MATCH(G$5+$B23&KuvaNimi,tblAndmed[KUUPÄEV JA KELLAAEG]&tblAndmed[KES],0),3),\"\")","v":""},{"$f":"IFERROR(INDEX(tblAndmed[],MATCH(H$5+$B23&KuvaNimi,tblAndmed[KUUPÄEV JA KELLAAEG]&tblAndmed[KES],0),3),\"\")","v":""},{"$f":"IFERROR(INDEX(tblAndmed[],MATCH(I$5+$B23&KuvaNimi,tblAndmed[KUUPÄEV JA KELLAAEG]&tblAndmed[KES],0),3),\"\")","v":""}]

{"sheet":"Andmesisestus","index":1,"n_rows":14,"n_cols":4,"rows_kept":14}
[null,"ANDMESISESTUS"]
[]
[null,"KUUPÄEV JA KELLAAEG","KES","ÜLESANNE"]
[null,"2012-07-02T08:00:00","Anna","Arstivisiit"]
[null,"2012-07-02T18:00:00","Meelis","Ravimite võtmine"]
[null,"2012-07-02T18:30:00","Meelis","Lõuna Peetriga"]
[null,"2012-07-02T20:00:00","Meelis","Kinokülastus perega"]
[null,"2012-07-03T16:00:00","Meelis","Puhkekodu"]
[null,"2012-07-04T10:00:00","Meelis","Paraad kesklinnas"]
[null,"2012-07-05T20:00:00","Meelis","Ilutulestik"]
[null,"2012-07-06T11:00:00","Meelis","Perelõuna"]
[null,"2012-07-07","Meelis","Kogukonnapiknik"]
[null,"2012-07-08T17:00:00","Meelis","Tagasitulek koju"]
[null,"2012-07-02T10:00:00","Anna","Klaveritund"]

{"sheet":"Nimeotsing","index":2,"n_rows":132,"n_cols":2,"rows_kept":132,"hidden":true,"merged":[[0,0,0,1]]}
["See leht täidab lehe Ajakava lahtri H3 nimede ripploendi. Kõik lehemuudatused võivad tulemuseks anda tõrke."]
["KORDUMATU NIMI","REA NUMBER"]
[{"$f":"IFERROR(INDEX(KesVäli,MATCH(0,COUNTIF($A$2:A2,KesVäli),0)),\"\")","v":"Anna"},{"$f":"IF(A3=\"\",\"\",ROW())","v":3}]
[{"$f":"IFERROR(INDEX(KesVäli,MATCH(0,COUNTIF($A$2:A3,KesVäli),0)),\"\")","v":"Meelis"},{"$f":"IF(A4=\"\",\"\",ROW())","v":4}]
[{"$f":"IFERROR(INDEX(KesVäli,MATCH(0,COUNTIF($A$2:A4,KesVäli),0)),\"\")","v":""},""]
[{"$f":"IFERROR(INDEX(KesVäli,MATCH(0,COUNTIF($A$2:A5,KesVäli),0)),\"\")","v":""},""]
[{"$f":"IFERROR(INDEX(KesVäli,MATCH(0,COUNTIF($A$2:A6,KesVäli),0)),\"\")","v":""},""]
[{"$f":"IFERROR(INDEX(KesVäli,MATCH(0,COUNTIF($A$2:A7,KesVäli),0)),\"\")","v":""},""]
[{"$f":"IFERROR(INDEX(KesVäli,MATCH(0,COUNTIF($A$2:A8,KesVäli),0)),\"\")","v":""},""]
[{"$f":"IFERROR(INDEX(KesVäli,MATCH(0,COUNTIF($A$2:A9,KesVäli),0)),\"\")","v":""},""]
[{"$f":"IFERROR(INDEX(KesVäli,MATCH(0,COUNTIF($A$2:A10,KesVäli),0)),\"\")","v":""},""]
[{"$f":"IFERROR(INDEX(KesVäli,MATCH(0,COUNTIF($A$2:A11,KesVäli),0)),\"\")","v":""},""]
[{"$f":"IFERROR(INDEX(KesVäli,MATCH(0,COUNTIF($A$2:A12,KesVäli),0)),\"\")","v":""},""]
[{"$f":"IFERROR(INDEX(KesVäli,MATCH(0,COUNTIF($A$2:A13,KesVäli),0)),\"\")","v":""},""]
[{"$f":"IFERROR(INDEX(KesVäli,MATCH(0,COUNTIF($A$2:A14,KesVäli),0)),\"\")","v":""},""]
[{"$f":"IFERROR(INDEX(KesVäli,MATCH(0,COUNTIF($A$2:A15,KesVäli),0)),\"\")","v":""},""]
[{"$f":"IFERROR(INDEX(KesVäli,MATCH(0,COUNTIF($A$2:A16,KesVäli),0)),\"\")","v":""},""]
[{"$f":"IFERROR(INDEX(KesVäli,MATCH(0,COUNTIF($A$2:A17,KesVäli),0)),\"\")","v":""},""]
[{"$f":"IFERROR(INDEX(KesVäli,MATCH(0,COUNTIF($A$2:A18,KesVäli),0)),\"\")","v":""},""]
[{"$f":"IFERROR(INDEX(KesVäli,MATCH(0,COUNTIF($A$2:A19,KesVäli),0)),\"\")","v":""},""]
[{"$f":"IFERROR(INDEX(KesVäli,MATCH(0,COUNTIF($A$2:A20,KesVäli),0)),\"\")","v":""},""]
[{"$f":"IFERROR(INDEX(KesVäli,MATCH(0,COUNTIF($A$2:A21,KesVäli),0)),\"\")","v":""},""]
[{"$f":"IFERROR(INDEX(KesVäli,MATCH(0,COUNTIF($A$2:A22,KesVäli),0)),\"\")","v":""},""]
[{"$f":"IFERROR(INDEX(KesVäli,MATCH(0,COUNTIF($A$2:A23,KesVäli),0)),\"\")","v":""},""]
[{"$f":"IFERROR(INDEX(KesVäli,MATCH(0,COUNTIF($A$2:A24,KesVäli),0)),\"\")","v":""},""]
[{"$f":"IFERROR(INDEX(KesVäli,MATCH(0,COUNTIF($A$2:A25,KesVäli),0)),\"\")","v":""},""]
[{"$f":"IFERROR(INDEX(KesVäli,MATCH(0,COUNTIF($A$2:A26,KesVäli),0)),\"\")","v":""},""]
[{"$f":"IFERROR(INDEX(KesVäli,MATCH(0,COUNTIF($A$2:A27,KesVäli),0)),\"\")","v":""},""]
[{"$f":"IFERROR(INDEX(KesVäli,MATCH(0,COUNTIF($A$2:A28,KesVäli),0)),\"\")","v":""},""]
[{"$f":"IFERROR(INDEX(KesVäli,MATCH(0,COUNTIF($A$2:A29,KesVäli),0)),\"\")","v":""},""]
[{"$f":"IFERROR(INDEX(KesVäli,MATCH(0,COUNTIF($A$2:A30,KesVäli),0)),\"\")","v":""},""]
[{"$f":"IFERROR(INDEX(KesVäli,MATCH(0,COUNTIF($A$2:A31,KesVäli),0)),\"\")","v":""},""]
[{"$f":"IFERROR(INDEX(KesVäli,MATCH(0,COUNTIF($A$2:A32,KesVäli),0)),\"\")","v":""},""]
[{"$f":"IFERROR(INDEX(KesVäli,MATCH(0,COUNTIF($A$2:A33,KesVäli),0)),\"\")","v":""},""]
[{"$f":"IFERROR(INDEX(KesVäli,MATCH(0,COUNTIF($A$2:A34,KesVäli),0)),\"\")","v":""},""]
[{"$f":"IFERROR(INDEX(KesVäli,MATCH(0,COUNTIF($A$2:A35,KesVäli),0)),\"\")","v":""},""]
[{"$f":"IFERROR(INDEX(KesVäli,MATCH(0,COUNTIF($A$2:A36,KesVäli),0)),\"\")","v":""},""]
[{"$f":"IFERROR(INDEX(KesVäli,MATCH(0,COUNTIF($A$2:A37,KesVäli),0)),\"\")","v":""},""]
[{"$f":"IFERROR(INDEX(KesVäli,MATCH(0,COUNTIF($A$2:A38,KesVäli),0)),\"\")","v":""},""]
[{"$f":"IFERROR(INDEX(KesVäli,MATCH(0,COUNTIF($A$2:A39,KesVäli),0)),\"\")","v":""},""]
[{"$f":"IFERROR(INDEX(KesVäli,MATCH(0,COUNTIF($A$2:A40,KesVäli),0)),\"\")","v":""},""]
[{"$f":"IFERROR(INDEX(KesVäli,MATCH(0,COUNTIF($A$2:A41,KesVäli),0)),\"\")","v":""},""]
[{"$f":"IFERROR(INDEX(KesVäli,MATCH(0,COUNTIF($A$2:A42,KesVäli),0)),\"\")","v":""},""]
[{"$f":"IFERROR(INDEX(KesVäli,MATCH(0,COUNTIF($A$2:A43,KesVäli),0)),\"\")","v":""},""]
[{"$f":"IFERROR(INDEX(KesVäli,MATCH(0,COUNTIF($A$2:A44,KesVäli),0)),\"\")","v":""},""]
[{"$f":"IFERROR(INDEX(KesVäli,MATCH(0,COUNTIF($A$2:A45,KesVäli),0)),\"\")","v":""},""]
[{"$f":"IFERROR(INDEX(KesVäli,MATCH(0,COUNTIF($A$2:A46,KesVäli),0)),\"\")","v":""},""]
[{"$f":"IFERROR(INDEX(KesVäli,MATCH(0,COUNTIF($A$2:A47,KesVäli),0)),\"\")","v":""},""]
[{"$f":"IFERROR(INDEX(KesVäli,MATCH(0,COUNTIF($A$2:A48,KesVäli),0)),\"\")","v":""},""]
[{"$f":"IFERROR(INDEX(KesVäli,MATCH(0,COUNTIF($A$2:A49,KesVäli),0)),\"\")","v":""},""]
[{"$f":"IFERROR(INDEX(KesVäli,MATCH(0,COUNTIF($A$2:A50,KesVäli),0)),\"\")","v":""},""]
[{"$f":"IFERROR(INDEX(KesVäli,MATCH(0,COUNTIF($A$2:A51,KesVäli),0)),\"\")","v":""},""]
[{"$f":"IFERROR(INDEX(KesVäli,MATCH(0,COUNTIF($A$2:A52,KesVäli),0)),\"\")","v":""},""]
[{"$f":"IFERROR(INDEX(KesVäli,MATCH(0,COUNTIF($A$2:A53,KesVäli),0)),\"\")","v":""},""]
[{"$f":"IFERROR(INDEX(KesVäli,MATCH(0,COUNTIF($A$2:A54,KesVäli),0)),\"\")","v":""},""]
[{"$f":"IFERROR(INDEX(KesVäli,MATCH(0,COUNTIF($A$2:A55,KesVäli),0)),\"\")","v":""},""]
[{"$f":"IFERROR(INDEX(KesVäli,MATCH(0,COUNTIF($A$2:A56,KesVäli),0)),\"\")","v":""},""]
[{"$f":"IFERROR(INDEX(KesVäli,MATCH(0,COUNTIF($A$2:A57,KesVäli),0)),\"\")","v":""},""]
[{"$f":"IFERROR(INDEX(KesVäli,MATCH(0,COUNTIF($A$2:A58,KesVäli),0)),\"\")","v":""},""]
[{"$f":"IFERROR(INDEX(KesVäli,MATCH(0,COUNTIF($A$2:A59,KesVäli),0)),\"\")","v":""},""]
[{"$f":"IFERROR(INDEX(KesVäli,MATCH(0,COUNTIF($A$2:A60,KesVäli),0)),\"\")","v":""},""]
[{"$f":"IFERROR(INDEX(KesVäli,MATCH(0,COUNTIF($A$2:A61,KesVäli),0)),\"\")","v":""},""]
[{"$f":"IFERROR(INDEX(KesVäli,MATCH(0,COUNTIF($A$2:A62,KesVäli),0)),\"\")","v":""},""]
[{"$f":"IFERROR(INDEX(KesVäli,MATCH(0,COUNTIF($A$2:A63,KesVäli),0)),\"\")","v":""},""]
[{"$f":"IFERROR(INDEX(KesVäli,MATCH(0,COUNTIF($A$2:A64,KesVäli),0)),\"\")","v":""},""]
[{"$f":"IFERROR(INDEX(KesVäli,MATCH(0,COUNTIF($A$2:A65,KesVäli),0)),\"\")","v":""},""]
[{"$f":"IFERROR(INDEX(KesVäli,MATCH(0,COUNTIF($A$2:A66,KesVäli),0)),\"\")","v":""},""]
[{"$f":"IFERROR(INDEX(KesVäli,MATCH(0,COUNTIF($A$2:A67,KesVäli),0)),\"\")","v":""},{"$f":"IF(A68=\"\",\"\",ROW())","v":""}]
[{"$f":"IFERROR(INDEX(KesVäli,MATCH(0,COUNTIF($A$2:A68,KesVäli),0)),\"\")","v":""},""]
[{"$f":"IFERROR(INDEX(KesVäli,MATCH(0,COUNTIF($A$2:A69,KesVäli),0)),\"\")","v":""},""]
[{"$f":"IFERROR(INDEX(KesVäli,MATCH(0,COUNTIF($A$2:A70,KesVäli),0)),\"\")","v":""},""]
[{"$f":"IFERROR(INDEX(KesVäli,MATCH(0,COUNTIF($A$2:A71,KesVäli),0)),\"\")","v":""},""]
[{"$f":"IFERROR(INDEX(KesVäli,MATCH(0,COUNTIF($A$2:A72,KesVäli),0)),\"\")","v":""},""]
[{"$f":"IFERROR(INDEX(KesVäli,MATCH(0,COUNTIF($A$2:A73,KesVäli),0)),\"\")","v":""},""]
[{"$f":"IFERROR(INDEX(KesVäli,MATCH(0,COUNTIF($A$2:A74,KesVäli),0)),\"\")","v":""},""]
[{"$f":"IFERROR(INDEX(KesVäli,MATCH(0,COUNTIF($A$2:A75,KesVäli),0)),\"\")","v":""},""]
[{"$f":"IFERROR(INDEX(KesVäli,MATCH(0,COUNTIF($A$2:A76,KesVäli),0)),\"\")","v":""},""]
[{"$f":"IFERROR(INDEX(KesVäli,MATCH(0,COUNTIF($A$2:A77,KesVäli),0)),\"\")","v":""},""]
[{"$f":"IFERROR(INDEX(KesVäli,MATCH(0,COUNTIF($A$2:A78,KesVäli),0)),\"\")","v":""},""]
[{"$f":"IFERROR(INDEX(KesVäli,MATCH(0,COUNTIF($A$2:A79,KesVäli),0)),\"\")","v":""},""]
[{"$f":"IFERROR(INDEX(KesVäli,MATCH(0,COUNTIF($A$2:A80,KesVäli),0)),\"\")","v":""},""]
[{"$f":"IFERROR(INDEX(KesVäli,MATCH(0,COUNTIF($A$2:A81,KesVäli),0)),\"\")","v":""},""]
[{"$f":"IFERROR(INDEX(KesVäli,MATCH(0,COUNTIF($A$2:A82,KesVäli),0)),\"\")","v":""},""]
[{"$f":"IFERROR(INDEX(KesVäli,MATCH(0,COUNTIF($A$2:A83,KesVäli),0)),\"\")","v":""},""]
[{"$f":"IFERROR(INDEX(KesVäli,MATCH(0,COUNTIF($A$2:A84,KesVäli),0)),\"\")","v":""},""]
[{"$f":"IFERROR(INDEX(KesVäli,MATCH(0,COUNTIF($A$2:A85,KesVäli),0)),\"\")","v":""},""]
[{"$f":"IFERROR(INDEX(KesVäli,MATCH(0,COUNTIF($A$2:A86,KesVäli),0)),\"\")","v":""},""]
[{"$f":"IFERROR(INDEX(KesVäli,MATCH(0,COUNTIF($A$2:A87,KesVäli),0)),\"\")","v":""},""]
[{"$f":"IFERROR(INDEX(KesVäli,MATCH(0,COUNTIF($A$2:A88,KesVäli),0)),\"\")","v":""},""]
[{"$f":"IFERROR(INDEX(KesVäli,MATCH(0,COUNTIF($A$2:A89,KesVäli),0)),\"\")","v":""},""]
[{"$f":"IFERROR(INDEX(KesVäli,MATCH(0,COUNTIF($A$2:A90,KesVäli),0)),\"\")","v":""},""]
[{"$f":"IFERROR(INDEX(KesVäli,MATCH(0,COUNTIF($A$2:A91,KesVäli),0)),\"\")","v":""},""]
[{"$f":"IFERROR(INDEX(KesVäli,MATCH(0,COUNTIF($A$2:A92,KesVäli),0)),\"\")","v":""},""]
[{"$f":"IFERROR(INDEX(KesVäli,MATCH(0,COUNTIF($A$2:A93,KesVäli),0)),\"\")","v":""},""]
[{"$f":"IFERROR(INDEX(KesVäli,MATCH(0,COUNTIF($A$2:A94,KesVäli),0)),\"\")","v":""},""]
[{"$f":"IFERROR(INDEX(KesVäli,MATCH(0,COUNTIF($A$2:A95,KesVäli),0)),\"\")","v":""},""]
[{"$f":"IFERROR(INDEX(KesVäli,MATCH(0,COUNTIF($A$2:A96,KesVäli),0)),\"\")","v":""},""]
[{"$f":"IFERROR(INDEX(KesVäli,MATCH(0,COUNTIF($A$2:A97,KesVäli),0)),\"\")","v":""},""]
[{"$f":"IFERROR(INDEX(KesVäli,MATCH(0,COUNTIF($A$2:A98,KesVäli),0)),\"\")","v":""},""]
[{"$f":"IFERROR(INDEX(KesVäli,MATCH(0,COUNTIF($A$2:A99,KesVäli),0)),\"\")","v":""},""]
[{"$f":"IFERROR(INDEX(KesVäli,MATCH(0,COUNTIF($A$2:A100,KesVäli),0)),\"\")","v":""},""]
[{"$f":"IFERROR(INDEX(KesVäli,MATCH(0,COUNTIF($A$2:A101,KesVäli),0)),\"\")","v":""},""]
[{"$f":"IFERROR(INDEX(KesVäli,MATCH(0,COUNTIF($A$2:A102,KesVäli),0)),\"\")","v":""},""]
[{"$f":"IFERROR(INDEX(KesVäli,MATCH(0,COUNTIF($A$2:A103,KesVäli),0)),\"\")","v":""},""]
[{"$f":"IFERROR(INDEX(KesVäli,MATCH(0,COUNTIF($A$2:A104,KesVäli),0)),\"\")","v":""},""]
[{"$f":"IFERROR(INDEX(KesVäli,MATCH(0,COUNTIF($A$2:A105,KesVäli),0)),\"\")","v":""},""]
[{"$f":"IFERROR(INDEX(KesVäli,MATCH(0,COUNTIF($A$2:A106,KesVäli),0)),\"\")","v":""},""]
[{"$f":"IFERROR(INDEX(KesVäli,MATCH(0,COUNTIF($A$2:A107,KesVäli),0)),\"\")","v":""},""]
[{"$f":"IFERROR(INDEX(KesVäli,MATCH(0,COUNTIF($A$2:A108,KesVäli),0)),\"\")","v":""},""]
[{"$f":"IFERROR(INDEX(KesVäli,MATCH(0,COUNTIF($A$2:A109,KesVäli),0)),\"\")","v":""},""]
[{"$f":"IFERROR(INDEX(KesVäli,MATCH(0,COUNTIF($A$2:A110,KesVäli),0)),\"\")","v":""},""]
[{"$f":"IFERROR(INDEX(KesVäli,MATCH(0,COUNTIF($A$2:A111,KesVäli),0)),\"\")","v":""},""]
[{"$f":"IFERROR(INDEX(KesVäli,MATCH(0,COUNTIF($A$2:A112,KesVäli),0)),\"\")","v":""},""]
[{"$f":"IFERROR(INDEX(KesVäli,MATCH(0,COUNTIF($A$2:A113,KesVäli),0)),\"\")","v":""},""]
[{"$f":"IFERROR(INDEX(KesVäli,MATCH(0,COUNTIF($A$2:A114,KesVäli),0)),\"\")","v":""},""]
[{"$f":"IFERROR(INDEX(KesVäli,MATCH(0,COUNTIF($A$2:A115,KesVäli),0)),\"\")","v":""},""]
[{"$f":"IFERROR(INDEX(KesVäli,MATCH(0,COUNTIF($A$2:A116,KesVäli),0)),\"\")","v":""},""]
[{"$f":"IFERROR(INDEX(KesVäli,MATCH(0,COUNTIF($A$2:A117,KesVäli),0)),\"\")","v":""},""]
[{"$f":"IFERROR(INDEX(KesVäli,MATCH(0,COUNTIF($A$2:A118,KesVäli),0)),\"\")","v":""},""]
[{"$f":"IFERROR(INDEX(KesVäli,MATCH(0,COUNTIF($A$2:A119,KesVäli),0)),\"\")","v":""},""]
[{"$f":"IFERROR(INDEX(KesVäli,MATCH(0,COUNTIF($A$2:A120,KesVäli),0)),\"\")","v":""},""]
[{"$f":"IFERROR(INDEX(KesVäli,MATCH(0,COUNTIF($A$2:A121,KesVäli),0)),\"\")","v":""},""]
[{"$f":"IFERROR(INDEX(KesVäli,MATCH(0,COUNTIF($A$2:A122,KesVäli),0)),\"\")","v":""},""]
[{"$f":"IFERROR(INDEX(KesVäli,MATCH(0,COUNTIF($A$2:A123,KesVäli),0)),\"\")","v":""},""]
[{"$f":"IFERROR(INDEX(KesVäli,MATCH(0,COUNTIF($A$2:A124,KesVäli),0)),\"\")","v":""},""]
[{"$f":"IFERROR(INDEX(KesVäli,MATCH(0,COUNTIF($A$2:A125,KesVäli),0)),\"\")","v":""},""]
[{"$f":"IFERROR(INDEX(KesVäli,MATCH(0,COUNTIF($A$2:A126,KesVäli),0)),\"\")","v":""},""]
[{"$f":"IFERROR(INDEX(KesVäli,MATCH(0,COUNTIF($A$2:A127,KesVäli),0)),\"\")","v":""},""]
[{"$f":"IFERROR(INDEX(KesVäli,MATCH(0,COUNTIF($A$2:A128,KesVäli),0)),\"\")","v":""},""]
[{"$f":"IFERROR(INDEX(KesVäli,MATCH(0,COUNTIF($A$2:A129,KesVäli),0)),\"\")","v":""},""]
[{"$f":"IFERROR(INDEX(KesVäli,MATCH(0,COUNTIF($A$2:A130,KesVäli),0)),\"\")","v":""},""]
[{"$f":"IFERROR(INDEX(KesVäli,MATCH(0,COUNTIF($A$2:A131,KesVäli),0)),\"\")","v":""},{"$f":"IF(A132=\"\",\"\",ROW())","v":""}]